fUSD/lending_fUSD_20240831
["ID","MTS","AMOUNT","RATE_DAILY","PERIOD"]
[336718929,1725069038390,-129.77828725,0.00010973,2]
[336718930,1725069038402,-500.0,0.00010973,2]
[336718931,1725069038413,-2681.9,0.00010973,2]
[336718932,1725069038495,-3141.35,0.00010973,2]
[336718933,1725069038672,-298.69843811,0.00010973,2]
[336718934,1725069038683,-6022.33676,0.00010973,2]
[336718952,1725069040390,-1512.40676538,0.00010973,2]
[336718953,1725069040401,-624.07499994,0.00010973,2]
[336719192,1725069043210,-3078.81284383,0.00010973,2]
[336719195,1725069043223,-1605.68395273,0.00010973,2]
[336719197,1725069043235,-623.2125914,0.00010973,2]
[336719462,1725069046026,-635.21123001,0.00010973,2]
[336719464,1725069046037,-13558.86419814,0.00010973,2]
[336719466,1725069046048,-5060.0,0.00010973,2]
[336719963,1725069051454,955.48388679,0.00010899,2]
[336720403,1725069107624,500.0,8.22e-05,2]
[336720404,1725069215278,250.0,0.0001016,2]
[336720405,1725069280132,163.88,0.00010093,2]
[336720406,1725069280501,153.75,8.219e-05,2]
[336720407,1725069303782,-500.0,0.0001096,2]
[336720408,1725069303806,-161.0,0.00010969,2]
[336720409,1725069303829,-150.0,0.00010969,2]
[336720410,1725069303852,-300.0,0.00010969,2]
[336720411,1725069303875,-5900.6,0.0001097,2]
[336720414,1725069345630,156.77136253,8.22e-05,2]
[336720415,1725069379265,1050.0,0.0001,2]
[336720416,1725069476679,859.93549812,0.00010899,2]
[336720417,1725069519157,840.0,0.00010259,2]
[336720418,1725069696676,250.0,0.0001024,2]
[336720420,1725069763131,162.53833169,0.00010873,2]
[336720421,1725069773528,153.75,8.285e-05,2]
[336720423,1725069815361,155.81,0.00010959,2]
[336720424,1725069884092,163.88,0.00010203,2]
[336720425,1725069903130,773.94194829,0.00010899,2]
[336720851,1725070060975,328.0,0.00010193,2]
[336720910,1725070232442,-152.34,0.00010963,2]
[336720911,1725070232452,-150.0,0.00010967,2]
[336720912,1725070232464,-66.45004996,0.00010967,2]
[336720913,1725070232475,-233.54995004,0.00010967,2]
[336720914,1725070232484,-1572.66621348,0.00010968,2]
[336720920,1725070240516,-424.42009062,0.00010968,2]
[336720921,1725070240525,-587.6920844,0.00010968,2]
[336720922,1725070240536,-2508.72959608,0.00010968,2]
[336720923,1725070240549,-647.526547,0.00010968,2]
[336720924,1725070240561,-739.70005,0.00010968,2]
[336720925,1725070240574,-669.21960628,0.00010968,2]
[336720926,1725070240887,-1117.65242717,0.00010968,2]
[336720927,1725070240921,-3285.42717412,0.00010968,2]
[336720928,1725070240932,-3951.25058066,0.00010968,2]
[336720929,1725070240943,-1958.28201869,0.00010968,2]
[336720930,1725070240952,-9264.64593399,0.00010968,2]
[336720931,1725070240963,-206.42329291,0.00010968,2]
[336720932,1725070240972,-4460.0525707,0.00010968,2]
[336720933,1725070240981,-338.2437131,0.00010969,2]
[336720935,1725070240990,-17319.74198894,0.00010969,2]
[336720936,1725070240999,-51484.16503049,0.0001097,10]
[336720938,1725070241031,-6315.3454475,0.0001097,10]
[336720939,1725070241042,-17232.99482935,0.0001097,10]
[336720940,1725070241055,-4853.09999989,0.0001097,10]
[336720941,1725070241068,-4925.52846422,0.0001097,10]
[336721019,1725070243678,-90914.62546901,0.0001097,10]
[336721090,1725070246475,-404.48230813,0.0001097,10]
[336721091,1725070246488,-1455.39500522,0.0001097,10]
[336721092,1725070246500,-1861.594756,0.0001097,10]
[336721093,1725070246513,-6084.5,0.0001097,10]
[336721094,1725070246525,-30199.20982021,0.0001097,10]
[336721098,1725070249535,153.75,8.273e-05,2]
[336721099,1725070256192,250.0,0.00010199,2]
[336721102,1725070329814,696.54775347,0.00010899,2]
[336721103,1725070335607,259.5,0.00010269,2]
[336721104,1725070541557,268.89,0.00010241,2]
[336721105,1725070656424,737.6,0.0001024,2]
[336721106,1725070671653,959.89,0.00010215,2]
[336721107,1725070731784,372.4760441,0.00010899,2]
[336721108,1725070758432,626.89297806,0.00010899,2]
[336721109,1725070797892,250.0,0.00010246,2]
[336721110,1725070866476,153.75,8.219e-05,2]
[336721112,1725071019071,162.53833169,0.00010873,2]
[336721113,1725071104978,184.88,0.00010089,2]
[336721121,1725071178071,409.92,0.00010096,2]
[336721122,1725071183374,564.20368029,0.00010899,2]
[336721123,1725071204857,1050.0,0.0001,2]
[336721131,1725071297402,250.0,0.00010096,2]
[336721132,1725071336738,150.0,0.00010859,2]
[336721133,1725071340717,4375.75206508,0.00010873,2]
[336721134,1725071342244,444.49,0.00010959,2]
[336721135,1725071345337,1000.0,0.00010873,2]
[336721136,1725071345918,150.25749,0.00010859,2]
[336721143,1725071348960,157.22,8.219e-05,2]
[336721172,1725071357828,506.44742254,0.00010873,2]
[336721173,1725071369489,3589.5239,0.00010873,2]
[336721174,1725071370326,503.86,9.973e-05,2]
[336721175,1725071372279,166.37461687,0.00010873,2]
[336721176,1725071381862,703.9305,0.00010862,2]
[336721177,1725071404957,192.00117837,0.000109,2]
[336721178,1725071406447,2500.0,0.00010873,2]
[336721199,1725071431955,-151.58,0.00010963,2]
[336721201,1725071431966,-558.68876103,0.00010964,2]
[336721203,1725071431979,-2344.30419864,0.00010964,2]
[336721206,1725071431994,-828.00704033,0.00010964,2]
[336721208,1725071432007,-5.79089283,0.00010964,2]
[336721211,1725071432021,-318.86689986,0.00010964,2]
[336721216,1725071432060,-331.9629089,0.00010964,2]
[336721218,1725071432072,-602.37929841,0.00010964,2]
[336721220,1725071432083,-150.0,0.00010967,2]
[336721223,1725071432095,-47.69181627,0.00010968,2]
[336721227,1725071432128,-211.54557098,0.00010968,2]
[336721229,1725071432140,-1702.49337196,0.00010968,2]
[336721231,1725071432157,-2425.42823364,0.00010968,2]
[336721232,1725071432169,-293.0227808,0.00010968,2]
[336721233,1725071432181,-13898.9202674,0.00010968,2]
[336721234,1725071432193,-90.04303401,0.00010968,2]
[336721235,1725071432210,-503.24199182,0.00010968,2]
[336721236,1725071432260,-1564.09953087,0.00010968,2]
[336721237,1725071432271,-7912.3685568,0.00010968,2]
[336721238,1725071432282,-221.75384582,0.0001097,2]
[336721239,1725071432292,-2493.29304679,0.0001097,10]
[336721240,1725071432306,-27847.0306,0.0001097,10]
[336721241,1725071432320,-3928.73522319,0.0001097,10]
[336721242,1725071432332,-200.0,0.0001097,2]
[336721243,1725071432343,-354.61832302,0.0001097,2]
[336721244,1725071432354,-200.0,0.0001097,2]
[336721245,1725071432365,-810.0,0.00010972,2]
[336721246,1725071432374,-930.0,0.00010972,2]
[336721247,1725071432384,-1898.0,0.00010972,2]
[336721248,1725071432396,-552.0,0.00010972,2]
[336721249,1725071432408,-804.0,0.00010972,2]
[336721250,1725071432419,-1139.0,0.00010972,2]
[336721251,1725071432431,-3322.0,0.00010972,2]
[336721252,1725071432443,-248.0,0.00010972,2]
[336721253,1725071432455,-8333.658,0.00010972,2]
[336721254,1725071432465,-1078.0,0.00010972,2]
[336721255,1725071432475,-433.461,0.00010972,2]
[336721256,1725071432486,-1545.0,0.00010972,2]
[336721257,1725071432496,-623.0,0.00010972,2]
[336721258,1725071432506,-289.0,0.00010972,2]
[336721259,1725071432518,-5853.0,0.00010972,2]
[336721260,1725071432543,-351.43012877,0.00010972,2]
[336721261,1725071432555,-1337.13302035,0.00010972,3]
[336721262,1725071432566,-1337.13302034,0.00010972,3]
[336721263,1725071432577,-150.0,0.00010972,2]
[336721264,1725071432588,-635.0,0.00010972,2]
[336721265,1725071432599,-8653.29,0.00010972,2]
[336721266,1725071432610,-499.99,0.00010972,2]
[336721267,1725071432621,-881.65,0.00010972,2]
[336721268,1725071432632,-159.35,0.00010972,2]
[336721269,1725071432643,-521656.23151884,0.00010973,2]
[336721270,1725071432657,-148812.1225,0.00010973,2]
[336721271,1725071432671,-8619.42,0.00010973,2]
[336721280,1725071438026,-452.76,0.00010964,2]
[336721282,1725071439934,-691.24,0.00010964,2]
[336721283,1725071439943,-3748.03591135,0.00010964,2]
[336721284,1725071439955,-379.515,0.00010964,2]
[336721293,1725071442596,-9333.44908865,0.00010964,2]
[336721294,1725071442606,-630.0,0.00010972,2]
[336721295,1725071442615,-23595.6009874,0.00010973,2]
[336721296,1725071442867,-423.97074858,0.00010973,2]
[336721306,1725071445547,-447.70809996,0.00010972,2]
[336721308,1725071445863,-296.4790291,0.00010972,2]
[336721310,1725071445878,-185.81287094,0.00010972,2]
[336721312,1725071445889,-12373.38297802,0.00010973,2]
[336721314,1725071445900,-1580.25000003,0.00010973,2]
[336721437,1725071449452,620.0978,0.00010873,2]
[336721438,1725071451077,52264.4437,0.00010873,2]
[336721439,1725071472860,700.0,8.22e-05,2]
[336721440,1725071474577,700.0,9.59e-05,2]
[336721441,1725071475396,500.0,8.22e-05,2]
[336721442,1725071477056,500.0,9.59e-05,2]
[336721443,1725071488161,337.63161502,0.00010873,2]
[336721444,1725071505244,187.0,0.00010959,2]
[336721445,1725071523134,180.01,0.0001013,2]
[336721446,1725071535545,3545.73,0.00010116,2]
[336721450,1725071606842,1500.0,0.00010959,2]
[336721451,1725071611956,507.78331227,0.00010899,2]
[336721452,1725071618536,225.08774336,0.00010873,2]
[336721453,1725071628681,218.42602689,0.00010873,2]
[336721455,1725071659319,184.92,0.00010113,2]
[336721456,1725071659370,156.09,0.00010959,2]
[336721464,1725071679595,250.0,0.00010959,2]
[336721465,1725071708396,150.0,0.00010959,2]
[336721466,1725071739827,672.06,0.00010088,2]
[336721467,1725071741326,11023.66,0.00010088,2]
[336721468,1725071749748,150.05849556,0.00010873,2]
[336721469,1725071792748,250.0,0.00010089,2]
[336721470,1725071811283,200.0,0.00010089,2]
[336721471,1725071835914,257.22650661,0.00010873,2]
[336721472,1725071838266,194.17,0.00010594,2]
[336721473,1725071839789,226.05,0.00010089,2]
[336721474,1725072039261,457.00498107,0.00010899,2]
[336721475,1725072053800,157.22,8.219e-05,2]
[336721476,1725072113850,185.1388337,0.00010873,2]
[336721477,1725072189665,252.09,0.00010131,2]
[336721478,1725072209793,462.35,0.00010131,2]
[336721479,1725072324132,166.37461686,0.00010873,2]
[336721480,1725072333601,250.0,0.00010128,2]
[336721490,1725072467880,411.3044829,0.00010899,2]
[336721514,1725072578457,157.22,8.219e-05,2]
[336721519,1725072631726,-700.0,0.0001096,2]
[336721520,1725072631735,-500.0,0.0001096,2]
[336721521,1725072631745,-151.54,0.00010963,2]
[336721522,1725072631754,-150.0,0.00010971,2]
[336721523,1725072631767,-300.0,0.00010971,2]
[336721524,1725072631776,-181.57067355,0.00010972,2]
[336721525,1725072631786,-410.17154622,0.00010972,2]
[336721526,1725072631797,-359.16532702,0.00010972,2]
[336721527,1725072631808,-489.66312676,0.00010972,2]
[336721528,1725072631817,-1545.0,0.00010972,2]
[336721529,1725072631828,-623.0,0.00010972,2]
[336721530,1725072631837,-69.69886934,0.00010972,2]
[336721531,1725072631926,-158.80013066,0.00010972,2]
[336721533,1725072631936,-930.0,0.00010972,2]
[336721535,1725072631945,-92.04992361,0.00010972,2]
[336721537,1725072631957,-1095.67607639,0.00010972,2]
[336721539,1725072631967,-550.383,0.00010972,2]
[336721541,1725072631976,-453.94092361,0.00010972,2]
[336721543,1725072631987,-641.43342479,0.00010972,2]
[336721545,1725072631998,-43.6256516,0.00010972,2]
[336721547,1725072632009,-446.0,0.00010972,2]
[336721548,1725072632018,-248.0,0.00010972,2]
[336721549,1725072632027,-1343.46110374,0.00010972,2]
[336721553,1725072638132,-1978.53889626,0.00010972,2]
[336721554,1725072638143,-289.0,0.00010972,2]
[336721555,1725072638154,-663.36110374,0.00010972,2]
[336721556,1725072638166,-3067.63889626,0.00010972,2]
[336721557,1725072638176,-1144.0,0.00010972,2]
[336721558,1725072638187,-4011.31364768,0.00010972,2]
[336721577,1725072639893,-588.2445,0.00010972,2]
[336721578,1725072639906,-431.39001,0.00010972,2]
[336721579,1725072640113,-466.45492359,0.00010972,2]
[336721580,1725072640129,-355.59691873,0.00010972,2]
[336721581,1725072640140,-2797.40512598,0.00010972,2]
[336721582,1725072640154,-462.57653702,0.00010972,2]
[336721583,1725072640166,-265.31313398,0.00010972,2]
[336721584,1725072640178,-256.18689694,0.00010972,2]
[336721585,1725072640192,-253.045,0.00010972,2]
[336721587,1725072640318,-629.16565114,0.00010972,2]
[336721588,1725072640331,-5210.791778,0.00010972,2]
[336721589,1725072640343,-3500.0,0.00010972,2]
[336721712,1725072644145,-86.51587694,0.00010972,2]
[336721713,1725072644155,-150.0,0.00010972,2]
[336721714,1725072644166,-150.0,0.00010972,2]
[336721715,1725072644175,-113.48412306,0.00010972,2]
[336721716,1725072644202,-381.64283379,0.00010972,2]
[336721717,1725072644214,-582.87304315,0.00010972,2]
[336721718,1725072644227,-150.0,0.00010972,2]
[336721719,1725072644238,-197.54454133,0.00010972,2]
[336721720,1725072644249,-648.21088534,0.00010972,2]
[336721721,1725072644262,-891.02090006,0.00010972,2]
[336721722,1725072644272,-12199.5809817,0.00010972,2]
[336721723,1725072644282,-2576.4597613,0.00010972,2]
[336721724,1725072644293,-624.0,0.00010972,2]
[336721725,1725072644303,-46978.39376203,0.00010973,2]
[336721726,1725072644314,-3932.95846468,0.00010973,2]
[336721727,1725072644326,-490.45,0.00010973,2]
[336721728,1725072644341,-8231.28438641,0.00010973,2]
[336721729,1725072644353,-279.92356222,0.00010973,2]
[336721730,1725072644366,-496.2367825,0.00010973,2]
[336721731,1725072644377,-11617.27147713,0.00010973,2]
[336721734,1725072645846,-729.12371714,0.00010973,2]
[336721735,1725072645859,-1753.85498398,0.00010973,2]
[336721736,1725072645872,-6772.36392534,0.00010973,2]
[336721737,1725072645884,-939.883994,0.00010973,2]
[336721738,1725072645895,-446.27256359,0.00010973,2]
[336721739,1725072645909,-453.46218221,0.00010973,2]
[336721740,1725072645920,-8349.39972059,0.00010973,2]
[336721741,1725072646077,-1185.01886014,0.00010973,2]
[336721742,1725072646089,-740.40033588,0.00010973,2]
[336721743,1725072646101,-547.54150672,0.00010973,2]
[336721744,1725072646112,-1919.57705919,0.00010973,2]
[336721745,1725072646124,-585.71,0.00010973,2]
[336721746,1725072646136,-4919.07120143,0.00010973,2]
[336721747,1725072646148,-1034.05360558,0.00010973,2]
[336721748,1725072646160,-1185.57,0.00010973,2]
[336721750,1725072664691,500.0,8.22e-05,2]
[336721751,1725072665215,500.0,8.22e-05,2]
[336721752,1725072666301,500.0,9.59e-05,2]
[336721753,1725072667256,500.0,9.59e-05,2]
[336721754,1725072736864,630.12,0.00010151,2]
[336721757,1725072749525,2001.292209,0.000105,2]
[336721761,1725072754055,155.81,0.00010959,2]
[336721762,1725072781680,11504.0,0.000106,5]
[336721763,1725072864964,250.0,0.00010157,2]
[336721764,1725072878456,198.32,0.0001016,2]
[336721765,1725072893142,370.17403461,0.00010899,2]
[336721766,1725073024523,1050.0,0.0001,2]
[336721768,1725073105905,157.22,8.302e-05,2]
[336721769,1725073224098,495.9,0.00010222,2]
[336721770,1725073245092,1078.0,0.00010897,2]
[336721771,1725073320884,333.15663114,0.00010899,2]
[336721772,1725073354942,198.36,0.00010098,2]
[336721773,1725073372485,250.0,0.00010098,2]
[336721775,1725073638705,157.22,8.219e-05,2]
[336721783,1725073747232,299.84096808,0.00010899,2]
[336721806,1725073759184,-500.0,0.0001096,2]
[336721807,1725073759213,-289.43224759,0.0001096,2]
[336721809,1725073783613,500.0,8.22e-05,2]
[336721818,1725073831846,-345.80403217,0.0001096,2]
[336721820,1725073832054,-154.19596783,0.0001096,2]
[336721821,1725073832064,-210.56775241,0.0001096,2]
[336721822,1725073832073,-3322.0,0.00010964,2]
[336721823,1725073832083,-431.155,0.00010964,2]
[336721824,1725073832093,-248.0,0.00010964,2]
[336721825,1725073832102,-5853.0,0.00010971,2]
[336721826,1725073832111,-1284.08127976,0.00010971,2]
[336721827,1725073832124,-2446.91872024,0.00010971,2]
[336721828,1725073832134,-289.0,0.00010971,2]
[336721829,1725073832144,-1144.0,0.00010971,2]
[336721830,1725073832154,-6757.593,0.00010971,2]
[336721831,1725073832166,-150.0,0.00010972,2]
[336721832,1725073832176,-1545.0,0.00010972,2]
[336721833,1725073832186,-1259.0,0.00010972,2]
[336721834,1725073832195,-315.933,0.00010972,2]
[336721835,1725073832205,-1262.12794049,0.00010972,2]
[336721836,1725073832264,-1055.69681033,0.00010972,2]
[336721837,1725073838214,-300.0,0.00010971,2]
[336721838,1725073838226,-778.0,0.00010971,2]
[336721839,1725073838236,-922.0,0.00010972,2]
[336721840,1725073838247,-592.62481938,0.00010972,2]
[336721841,1725073840250,-265.7548294,0.00010972,2]
[336721842,1725073840262,-618.61634809,0.00010972,2]
[336721843,1725073840275,-656.66,0.00010972,2]
[336721844,1725073840482,-724.59889991,0.00010972,2]
[336721851,1725073841640,1000.0,0.00010383,2]
[336721852,1725073843159,-4121.3300294,0.00010972,2]
[336721853,1725073843169,-2798.969361,0.00010972,2]
[336721854,1725073843179,-1677.4841184,0.00010972,2]
[336721855,1725073843188,-615.0,0.00010972,2]
[336721857,1725073843197,-7903.47891916,0.00010973,2]
[336721858,1725073843208,-733.52838807,0.00010973,2]
[336721864,1725073844449,-447.3484677,0.00010973,2]
[336721865,1725073844588,-10129.22854795,0.00010973,2]
[336721866,1725073844599,-101170.00872658,0.00010973,2]
[336721867,1725073846216,-1034.25342944,0.00010973,2]
[336722279,1725073891851,241.34,0.00010455,2]
[336722280,1725073900786,250.0,0.00010424,2]
[336722281,1725073917615,500.0,8.22e-05,2]
[336722282,1725073919238,500.0,9.59e-05,2]
[336722284,1725074134386,157.22,8.307e-05,2]
[336722285,1725074172465,269.85687129,0.00010899,2]
[336722286,1725074336369,200.0,0.00010224,2]
[336722287,1725074374630,241.36,0.00010215,2]
[336722288,1725074412470,218.6939,0.00010959,2]
[336722289,1725074425037,250.0,0.000101,2]
[336722292,1725074548118,156.09,0.00010959,2]
[336722293,1725074599677,242.87118408,0.00010899,2]
[336722294,1725074704324,150.0,0.00022,60]
[336722305,1725074844794,1050.0,0.0001,2]
[336722308,1725074901228,206.92,0.00010184,2]
[336722309,1725074902864,250.0,0.00010184,2]
[336722310,1725074925677,157.22,8.263e-05,2]
[336722338,1725075027731,218.58406569,0.00010899,2]
[336722346,1725075032379,-500.0,0.0001096,2]
[336722348,1725075032389,-785.0,0.00010961,2]
[336722350,1725075032399,-157.49,0.00010963,2]
[336722352,1725075032409,-9525.52034583,0.00010971,2]
[336722354,1725075032419,-300.0,0.00010971,2]
[336722355,1725075032429,-150.0,0.00010971,2]
[336722357,1725075032439,-151.34553541,0.00010972,2]
[336722359,1725075032449,-608.75752632,0.00010972,2]
[336722361,1725075032458,-2645.667,0.00010972,2]
[336722362,1725075032468,-248.0,0.00010972,2]
[336722363,1725075032477,-11167.9753518,0.00010972,2]
[336722364,1725075032487,-8246.8183484,0.00010972,2]
[336722365,1725075032496,-1078.0,0.00010972,2]
[336722366,1725075032505,-2252.9328014,0.00010972,2]
[336722367,1725075032515,-1334.2959709,0.00010972,2]
[336722368,1725075032524,-3731.0,0.00010972,2]
[336722369,1725075032533,-289.0,0.00010972,2]
[336722370,1725075032543,-1259.0,0.00010972,2]
[336722371,1725075032552,-1545.0,0.00010972,2]
[336722372,1725075032561,-5853.0,0.00010972,2]
[336722373,1725075032571,-606.0,0.00010972,2]
[336722374,1725075032582,-64505.70311286,0.00010973,2]
[336722375,1725075038228,-1144.0,0.00010972,2]
[336722376,1725075038238,-546.0,0.00010972,2]
[336722377,1725075038248,-2682.56120253,0.00010973,2]
[336722378,1725075038365,-3157.23284698,0.00010973,2]
[336722379,1725075038376,-12680.68088358,0.00010973,2]
[336722380,1725075038495,-303.16003,0.00010973,2]
[336722381,1725075038507,-315.0,0.00010973,2]
[336722480,1725075041717,-21747.4287702,0.00010973,2]
[336722482,1725075041731,-6429.8,0.00010973,2]
[336722487,1725075041766,-310.14703584,0.00010973,2]
[336722560,1725075043352,-6428.28499988,0.00010973,2]
[336722568,1725075044955,-386.800557,0.00010973,2]
[336722569,1725075044975,-33135.95733976,0.00010973,2]
[336722858,1725075067708,195.72,0.00010235,2]
[336722859,1725075096567,500.0,8.22e-05,2]
[336722860,1725075374803,1000.0,0.00010161,2]
[336722861,1725075405072,206.96,0.00010158,2]
[336722862,1725075410578,250.0,0.00010144,2]
[336722863,1725075452970,196.72565913,0.00010899,2]
[336722864,1725075494276,157.22,8.219e-05,2]
[336722866,1725075539859,155.81,0.00010959,2]
[336722868,1725075800810,2000.0,0.00023981,120]
[336722869,1725075879686,177.05309319,0.00010899,2]
[336722870,1725075888753,250.0,0.00010169,2]
[336722883,1725076053787,234.46,0.00010204,2]
[336722884,1725076125468,1000.0,0.0001018,2]
[336722885,1725076142942,-4132.48727556,0.00010962,2]
[336722886,1725076143028,-2217.35594049,0.00010962,2]
[336722909,1725076232193,-191.30936465,0.00010962,2]
[336722910,1725076232203,-157.5,0.00010963,2]
[336722911,1725076232212,-110.90364699,0.00010971,2]
[336722919,1725076238531,-39.09635301,0.00010971,2]
[336722920,1725076238542,-300.0,0.00010971,2]
[336722921,1725076238553,-1484.1196749,0.00010972,2]
[336722922,1725076238564,-4138.5084896,0.00010972,2]
[336722923,1725076238573,-22754.7171718,0.00010972,2]
[336722924,1725076238585,-1545.0,0.00010972,2]
[336722925,1725076238595,-242.919,0.00010972,2]
[336722926,1725076238607,-248.0,0.00010972,2]
[336722927,1725076238616,-1144.0,0.00010972,2]
[336722928,1725076238626,-3731.0,0.00010972,2]
[336722929,1725076238636,-5853.0,0.00010972,2]
[336722930,1725076238646,-289.0,0.00010972,2]
[336722931,1725076238655,-1078.0,0.00010972,2]
[336722932,1725076238665,-150.0,0.00010972,2]
[336722933,1725076238674,-132689.01051337,0.00010973,2]
[336722972,1725076240223,-279.18866175,0.00010973,2]
[336722973,1725076240236,-1187.365,0.00010973,2]
[336722974,1725076240249,-253.195,0.00010973,2]
[336723191,1725076244826,-66624.67525252,0.00010973,2]
[336723192,1725076246446,-753.2667821,0.00010972,2]
[336723193,1725076246456,-89009.49015745,0.00010973,2]
[336723194,1725076304924,159.34778388,0.00010899,2]
[336723195,1725076308311,157.22,8.249e-05,2]
[336723196,1725076354497,1212.2143,0.00010873,2]
[336723197,1725076433681,250.0,0.00010205,2]
[336723198,1725076662088,200.0,0.000104,2]
[336723199,1725076663297,1050.0,0.0001,2]
[336723200,1725076680222,212.43,0.00010411,2]
[336723201,1725076732931,159.34778387,0.00010899,2]
[336723202,1725076795762,157.22,8.431e-05,2]
[336723204,1725076912287,181.84711,0.00010646,2]
[336723205,1725076928458,250.0,0.00010322,2]
[336723206,1725077029347,-258.0,0.00010963,2]
[336723207,1725077106167,2033.0,2.7e-05,120]
[336723208,1725077148372,159.34778387,0.00010899,2]
[336723223,1725077249139,212.44,0.0001033,2]
[336723224,1725077313083,1000.0,0.00010481,2]
[336723231,1725077417475,250.0,0.00010379,2]
[336723232,1725077418275,157.22,8.462e-05,2]
[336723233,1725077426648,156.09,0.00010959,2]
[336723251,1725077432365,-157.5,0.00010963,2]
[336723253,1725077432374,-300.0,0.00010971,2]
[336723255,1725077432383,-827.59495946,0.00010972,2]
[336723262,1725077438447,-484.43905378,0.00010972,2]
[336723263,1725077438499,-999.05767994,0.00010972,2]
[336723264,1725077438712,-1975.69330682,0.00010972,2]
[336723265,1725077438723,-224.30669318,0.00010972,2]
[336723266,1725077438735,-1116.50326628,0.00010972,2]
[336723267,1725077438767,-2390.19004054,0.00010972,2]
[336723268,1725077438776,-1144.0,0.00010972,2]
[336723269,1725077438785,-385.443,0.00010972,2]
[336723270,1725077438795,-1180.56221506,0.00010972,3]
[336723271,1725077438804,-1180.56221507,0.00010972,3]
[336723272,1725077438814,-8411.0998487,0.00010972,2]
[336723273,1725077438823,-2049.52647276,0.00010972,2]
[336723301,1725077440493,-734.71887451,0.00010972,2]
[336723302,1725077440600,-13159.35227193,0.00010972,2]
[336723303,1725077440610,-498.8823357,0.00010972,2]
[336723304,1725077440619,-528.50457506,0.00010972,2]
[336723305,1725077440628,-7747.5890155,0.00010972,2]
[336723306,1725077440637,-359.1827105,0.00010972,2]
[336723307,1725077440646,-593.27296703,0.00010972,2]
[336723308,1725077440655,-981.673,0.00010972,2]
[336723309,1725077440665,-248.0,0.00010972,2]
[336723310,1725077440674,-101789.67791817,0.00010973,2]
[336723311,1725077440685,-291.88343201,0.00010973,2]
[336723312,1725077440696,-3466.60961756,0.00010973,2]
[336723313,1725077440707,-5568.99582229,0.00010973,2]
[336723314,1725077440718,-500.0,0.00010973,2]
[336723469,1725077445000,-401.47892665,0.00010973,2]
[336723470,1725077445110,-344571.11683857,0.00010973,2]
[336723484,1725077445411,-1143.40519,0.00010973,2]
[336723485,1725077445422,-1143.40519,0.00010973,2]
[336723486,1725077445434,-608.35712949,0.00010973,2]
[336723487,1725077445449,-285.56665977,0.00010973,2]
[336723488,1725077445460,-1578.68026137,0.00010973,2]
[336723489,1725077445545,-480.34,0.00010973,2]
[336723490,1725077553789,159.34778387,0.00010899,2]
[336723491,1725077631673,212.76,0.00010959,2]
[336723492,1725077785518,230.05,0.00010272,2]
[336723493,1725077878558,200.0,0.00010293,2]
[336723495,1725077949919,159.34778387,0.00010899,2]
[336723496,1725078076429,250.0,0.00010157,2]
[336723497,1725078202897,2000.0,0.00023981,120]
[336723498,1725078318029,215.96,0.0001013,2]
[336723499,1725078336508,159.34778387,0.00010899,2]
[336723502,1725078377683,840.0,0.00010129,2]
[336723503,1725078380334,16687.70299925,0.00024,120]
[336723505,1725078405147,155.81,0.00010959,2]
[336723514,1725078481932,1050.0,0.0001,2]
[336723533,1725078622958,250.0,0.00010146,2]
[336723544,1725078631506,-300.0,0.00010971,2]
[336723545,1725078631516,-593.27296702,0.00010972,2]
[336723546,1725078631525,-3482.9049054,0.00010972,2]
[336723547,1725078631535,-19850.2283039,0.00010972,2]
[336723549,1725078631544,-1298.4556179,0.00010972,2]